[Event "Titled Tuesday Blitz May 9 Early 2023"]
[White "Djordjevic, Vuk"]
[Black "Mitrabha, Guha"]
[WhiteFideId "902098"]
[BlackFideId "5057000"]
[WhiteElo "2452"]
[BlackElo "2507"]
[Result "1/2-1/2"]
[Round "08"]
[TimeControl "180+2"]
[Date "2023.05.09"]
[WhiteClock "0:00:05"]
[BlackClock "0:00:26"]

1. d4 {[%clk 0:03:00]}  Nf6 {[%clk 0:02:59]} 2. Bg5 {[%clk 0:03:01]}  d5 {[%clk 0:02:50]} 3. Bxf6 {[%clk 0:03:00]}  gxf6 {[%clk 0:02:50]} 4. e3 {[%clk 0:03:00]}  c5 {[%clk 0:02:51]} 5. dxc5 {[%clk 0:03:00]}  Nc6 {[%clk 0:02:50]} 6. g3 {[%clk 0:02:51]}  e6 {[%clk 0:02:49]} 7. Bg2 {[%clk 0:02:50]}  Bxc5 {[%clk 0:02:49]} 8. Nf3 {[%clk 0:02:50]}  h5 {[%clk 0:02:47]} 9. O-O {[%clk 0:02:49]}  Be7 {[%clk 0:02:47]} 10. h4 {[%clk 0:02:48]}  f5 {[%clk 0:02:47]} 11. Nbd2 {[%clk 0:02:47]}  Bf6 {[%clk 0:02:48]} 12. Rb1 {[%clk 0:02:45]}  Ne7 {[%clk 0:02:46]} 13. c4 {[%clk 0:02:45]}  Bd7 {[%clk 0:02:46]} 14. cxd5 {[%clk 0:02:43]}  Nxd5 {[%clk 0:02:47]} 15. Nc4 {[%clk 0:02:41]}  Bc6 {[%clk 0:02:46]} 16. Nfe5 {[%clk 0:02:36]}  Kf8 {[%clk 0:02:44]} 17. Nxc6 {[%clk 0:02:31]}  bxc6 {[%clk 0:02:45]} 18. Qa4 {[%clk 0:02:28]}  Qc7 {[%clk 0:02:26]} 19. Rfc1 {[%clk 0:02:27]}  Kg7 {[%clk 0:02:18]} 20. Na5 {[%clk 0:02:16]}  Nxe3 {[%clk 0:01:40]} 21. Rxc6 {[%clk 0:01:09]}  Qe5 {[%clk 0:01:39]} 22. fxe3 {[%clk 0:01:06]}  Qxe3+ {[%clk 0:01:33]} 23. Kh2 {[%clk 0:01:02]}  Be5 {[%clk 0:01:33]} 24. Qb3 {[%clk 0:00:54]}  Bxg3+ {[%clk 0:01:33]} 25. Kh3 {[%clk 0:00:54]}  Qxb3 {[%clk 0:01:34]} 26. Nxb3 {[%clk 0:00:52]}  f4 {[%clk 0:01:24]} 27. Nd4 {[%clk 0:00:46]}  Rad8 {[%clk 0:01:19]} 28. Ne2 {[%clk 0:00:45]}  Rd3 {[%clk 0:01:19]} 29. Rc3 {[%clk 0:00:45]}  Rhd8 {[%clk 0:01:19]} 30. Nxg3 {[%clk 0:00:41]}  fxg3 {[%clk 0:01:16]} 31. Re1 {[%clk 0:00:41]}  Rxc3 {[%clk 0:01:13]} 32. bxc3 {[%clk 0:00:40]}  Rd3 {[%clk 0:01:13]} 33. c4 {[%clk 0:00:37]}  Rc3 {[%clk 0:01:12]} 34. Re5 {[%clk 0:00:27]}  Rxc4 {[%clk 0:00:38]} 35. Rg5+ {[%clk 0:00:23]}  Kf6 {[%clk 0:00:37]} 36. Rxh5 {[%clk 0:00:22]}  Ra4 {[%clk 0:00:37]} 37. Kxg3 {[%clk 0:00:21]}  Rxa2 {[%clk 0:00:38]} 38. Rg5 {[%clk 0:00:20]}  a5 {[%clk 0:00:38]} 39. Be4 {[%clk 0:00:19]}  a4 {[%clk 0:00:38]} 40. Ra5 {[%clk 0:00:20]}  a3 {[%clk 0:00:38]} 41. h5 {[%clk 0:00:20]}  Kg7 {[%clk 0:00:36]} 42. Kg4 {[%clk 0:00:18]}  Re2 {[%clk 0:00:35]} 43. Bf3 {[%clk 0:00:18]}  Ra2 {[%clk 0:00:33]} 44. Kg5 {[%clk 0:00:17]}  Ra1 {[%clk 0:00:32]} 45. h6+ {[%clk 0:00:14]}  Kh7 {[%clk 0:00:32]} 46. Be4+ {[%clk 0:00:14]}  f5 {[%clk 0:00:33]} 47. Ra7+ {[%clk 0:00:14]}  Kh8 {[%clk 0:00:34]} 48. Bf3 {[%clk 0:00:02]}  a2 {[%clk 0:00:33]} 49. Kf6 {[%clk 0:00:02]}  Rf1 {[%clk 0:00:23]} 50. Rxa2 {[%clk 0:00:02]}  Rxf3 {[%clk 0:00:24]} 51. Kxe6 {[%clk 0:00:03]}  Kh7 {[%clk 0:00:24]} 52. Rh2 {[%clk 0:00:04]}  f4 {[%clk 0:00:24]} 53. Kf5 {[%clk 0:00:04]}  Rf1 {[%clk 0:00:25]} 54. Kg4 {[%clk 0:00:02]}  f3 {[%clk 0:00:25]} 55. Kg3 {[%clk 0:00:03]}  Kh8 {[%clk 0:00:25]} 56. h7 {[%clk 0:00:03]}  f2 {[%clk 0:00:24]} 57. Kg2 {[%clk 0:00:02]}  Ra1 {[%clk 0:00:23]} 58. Kxf2 {[%clk 0:00:03]}  Ra2+ {[%clk 0:00:24]} 59. Kg3 {[%clk 0:00:04]}  Rxh2 {[%clk 0:00:25]} 60. Kxh2 {[%clk 0:00:05]}  Kxh7 {[%clk 0:00:26]} 1/2-1/2


[Site "https://www.chess.com"]

[Event "Titled Tuesday Blitz May 9 Early 2023"]
[White "Quesada Perez, Yuniesky"]
[Black "Leiva, Gianmarco"]
[WhiteFideId "3504409"]
[BlackFideId "3804399"]
[WhiteElo "2585"]
[BlackElo "2365"]
[Result "1-0"]
[Round "08"]
[TimeControl "180+2"]
[Date "2023.05.09"]
[WhiteClock "0:00:07"]
[BlackClock "0:00:01"]

1. e4 {[%clk 0:03:00]}  c5 {[%clk 0:02:59]} 2. Nf3 {[%clk 0:03:00]}  d6 {[%clk 0:02:58]} 3. d4 {[%clk 0:03:00]}  cxd4 {[%clk 0:02:59]} 4. Nxd4 {[%clk 0:03:01]}  Nf6 {[%clk 0:02:59]} 5. Nc3 {[%clk 0:03:02]}  a6 {[%clk 0:02:59]} 6. Be3 {[%clk 0:03:02]}  e5 {[%clk 0:02:58]} 7. Nb3 {[%clk 0:03:02]}  Be7 {[%clk 0:02:56]} 8. Qd2 {[%clk 0:03:02]}  Be6 {[%clk 0:02:55]} 9. O-O-O {[%clk 0:03:01]}  Ng4 {[%clk 0:02:45]} 10. g3 {[%clk 0:03:01]}  Nxe3 {[%clk 0:02:40]} 11. Qxe3 {[%clk 0:03:02]}  Nd7 {[%clk 0:02:38]} 12. f4 {[%clk 0:03:02]}  Qb6 {[%clk 0:02:29]} 13. Qe1 {[%clk 0:02:57]}  Nf6 {[%clk 0:02:22]} 14. Kb1 {[%clk 0:02:50]}  O-O {[%clk 0:02:20]} 15. f5 {[%clk 0:02:49]}  Bd7 {[%clk 0:01:46]} 16. Bc4 {[%clk 0:02:37]}  Rfc8 {[%clk 0:01:27]} 17. Nd5 {[%clk 0:02:32]}  Nxd5 {[%clk 0:01:26]} 18. Bxd5 {[%clk 0:02:33]}  a5 {[%clk 0:01:17]} 19. a3 {[%clk 0:02:33]}  a4 {[%clk 0:01:11]} 20. Nc1 {[%clk 0:02:32]}  Qa5 {[%clk 0:01:04]} 21. Qxa5 {[%clk 0:02:07]}  Rxa5 {[%clk 0:01:05]} 22. Bxb7 {[%clk 0:02:08]}  Rb8 {[%clk 0:00:57]} 23. Bd5 {[%clk 0:02:08]}  Bg5 {[%clk 0:00:48]} 24. Nd3 {[%clk 0:02:07]}  Bxf5 {[%clk 0:00:44]} 25. Bxf7+ {[%clk 0:01:36]}  Kxf7 {[%clk 0:00:45]} 26. Rhf1 {[%clk 0:01:36]}  g6 {[%clk 0:00:39]} 27. Nb4 {[%clk 0:01:26]}  Ke6 {[%clk 0:00:36]} 28. exf5+ {[%clk 0:01:25]}  gxf5 {[%clk 0:00:37]} 29. Nc6 {[%clk 0:01:25]}  Rab5 {[%clk 0:00:20]} 30. Nxb8 {[%clk 0:01:24]}  Rxb8 {[%clk 0:00:21]} 31. Rf2 {[%clk 0:01:22]}  e4 {[%clk 0:00:19]} 32. c3 {[%clk 0:01:12]}  d5 {[%clk 0:00:15]} 33. Kc2 {[%clk 0:01:12]}  Be3 {[%clk 0:00:14]} 34. Re2 {[%clk 0:01:10]}  Bh6 {[%clk 0:00:04]} 35. Rf1 {[%clk 0:01:09]}  Ke5 {[%clk 0:00:04]} 36. Ref2 {[%clk 0:01:09]}  Rf8 {[%clk 0:00:05]} 37. Rd1 {[%clk 0:00:40]}  Be3 {[%clk 0:00:04]} 38. Rg2 {[%clk 0:00:38]}  h5 {[%clk 0:00:04]} 39. b3 {[%clk 0:00:33]}  axb3+ {[%clk 0:00:04]} 40. Kxb3 {[%clk 0:00:34]}  Rb8+ {[%clk 0:00:04]} 41. Kc2 {[%clk 0:00:34]}  Ra8 {[%clk 0:00:04]} 42. Ra1 {[%clk 0:00:34]}  d4 {[%clk 0:00:03]} 43. cxd4+ {[%clk 0:00:32]}  Bxd4 {[%clk 0:00:04]} 44. Ra2 {[%clk 0:00:32]}  h4 {[%clk 0:00:03]} 45. a4 {[%clk 0:00:31]}  h3 {[%clk 0:00:03]} 46. Re2 {[%clk 0:00:30]}  f4 {[%clk 0:00:02]} 47. gxf4+ {[%clk 0:00:29]}  Kxf4 {[%clk 0:00:03]} 48. Ra3 {[%clk 0:00:28]}  Rc8+ {[%clk 0:00:02]} 49. Kd2 {[%clk 0:00:25]}  e3+ {[%clk 0:00:01]} 50. Kd3 {[%clk 0:00:26]}  Rd8 {[%clk 0:00:01]} 51. Raa2 {[%clk 0:00:20]}  Kf3 {[%clk 0:00:02]} 52. a5 {[%clk 0:00:20]}  Be5+ {[%clk 0:00:01]} 53. Kc4 {[%clk 0:00:20]}  Bf4 {[%clk 0:00:01]} 54. a6 {[%clk 0:00:20]}  Rd2 {[%clk 0:00:02]} 55. a7 {[%clk 0:00:15]}  Rxe2 {[%clk 0:00:02]} 56. Rxe2 {[%clk 0:00:15]}  Kxe2 {[%clk 0:00:02]} 57. a8=Q {[%clk 0:00:15]}  Bxh2 {[%clk 0:00:03]} 58. Qh1 {[%clk 0:00:14]}  Bg3 {[%clk 0:00:02]} 59. Qxh3 {[%clk 0:00:12]}  Bf2 {[%clk 0:00:02]} 60. Qg4+ {[%clk 0:00:11]}  Kd2 {[%clk 0:00:02]} 61. Qd4+ {[%clk 0:00:09]}  Kc1 {[%clk 0:00:01]} 62. Kd3 {[%clk 0:00:06]}  e2 {[%clk 0:00:01]} 63. Qa1# {[%clk 0:00:07]} 1-0


[Site "https://www.chess.com"]

[Event "Titled Tuesday Blitz May 9 Early 2023"]
[White "Livaic, Leon"]
[Black "Kucuksari, Kaan"]
[WhiteFideId "14531534"]
[BlackFideId "6380166"]
[WhiteElo "2522"]
[BlackElo "2364"]
[Result "1-0"]
[Round "08"]
[TimeControl "180+2"]
[Date "2023.05.09"]
[WhiteClock "0:00:14"]
[BlackClock "0:00:04"]

1. d4 {[%clk 0:02:59]}  d5 {[%clk 0:03:00]} 2. c4 {[%clk 0:03:00]}  c6 {[%clk 0:03:01]} 3. cxd5 {[%clk 0:03:00]}  cxd5 {[%clk 0:03:02]} 4. Bf4 {[%clk 0:03:01]}  Nc6 {[%clk 0:03:02]} 5. e3 {[%clk 0:03:02]}  Nf6 {[%clk 0:03:01]} 6. Nc3 {[%clk 0:03:03]}  a6 {[%clk 0:03:00]} 7. Be2 {[%clk 0:03:03]}  Bf5 {[%clk 0:02:58]} 8. Nf3 {[%clk 0:03:03]}  e6 {[%clk 0:02:58]} 9. Qb3 {[%clk 0:03:04]}  Nh5 {[%clk 0:02:58]} 10. Qxb7 {[%clk 0:03:03]}  Na5 {[%clk 0:02:57]} 11. Qc7 {[%clk 0:03:03]}  Nxf4 {[%clk 0:02:57]} 12. Qxd8+ {[%clk 0:03:03]}  Rxd8 {[%clk 0:02:47]} 13. exf4 {[%clk 0:03:04]}  Rb8 {[%clk 0:02:39]} 14. O-O-O {[%clk 0:02:24]}  Bb4 {[%clk 0:02:33]} 15. Nh4 {[%clk 0:02:23]}  Bxc3 {[%clk 0:02:15]} 16. bxc3 {[%clk 0:02:24]}  Rb1+ {[%clk 0:02:13]} 17. Kd2 {[%clk 0:02:24]}  Rb2+ {[%clk 0:02:13]} 18. Ke3 {[%clk 0:02:25]}  O-O {[%clk 0:02:00]} 19. Rd2 {[%clk 0:01:48]}  Rfb8 {[%clk 0:01:52]} 20. Nxf5 {[%clk 0:01:43]}  exf5 {[%clk 0:01:44]} 21. Rxb2 {[%clk 0:01:43]}  Rxb2 {[%clk 0:01:44]} 22. Bxa6 {[%clk 0:01:23]}  Rxa2 {[%clk 0:01:44]} 23. Bd3 {[%clk 0:01:22]}  g6 {[%clk 0:01:43]} 24. Rb1 {[%clk 0:01:20]}  Ra3 {[%clk 0:01:37]} 25. Rc1 {[%clk 0:00:45]}  Nb3 {[%clk 0:01:20]} 26. Rc2 {[%clk 0:00:42]}  Na1 {[%clk 0:01:18]} 27. Rc1 {[%clk 0:00:41]}  Nb3 {[%clk 0:01:18]} 28. Rb1 {[%clk 0:00:36]}  Na5 {[%clk 0:01:16]} 29. Rb5 {[%clk 0:00:26]}  Nc4+ {[%clk 0:01:16]} 30. Bxc4 {[%clk 0:00:26]}  dxc4 {[%clk 0:01:17]} 31. Kd2 {[%clk 0:00:19]}  Ra2+ {[%clk 0:01:17]} 32. Kd1 {[%clk 0:00:18]}  Ra1+ {[%clk 0:00:33]} 33. Kc2 {[%clk 0:00:18]}  Rf1 {[%clk 0:00:33]} 34. Rc5 {[%clk 0:00:16]}  Rxf2+ {[%clk 0:00:33]} 35. Kd1 {[%clk 0:00:17]}  Rxg2 {[%clk 0:00:31]} 36. Rxc4 {[%clk 0:00:17]}  Rxh2 {[%clk 0:00:30]} 37. d5 {[%clk 0:00:18]}  Kf8 {[%clk 0:00:20]} 38. d6 {[%clk 0:00:14]}  Ke8 {[%clk 0:00:20]} 39. Rc7 {[%clk 0:00:14]}  h5 {[%clk 0:00:16]} 40. c4 {[%clk 0:00:14]}  h4 {[%clk 0:00:16]} 41. c5 {[%clk 0:00:15]}  h3 {[%clk 0:00:16]} 42. c6 {[%clk 0:00:15]}  Kf8 {[%clk 0:00:04]} 43. d7 {[%clk 0:00:14]} 1-0


[Site "https://www.chess.com"]

[Event "Titled Tuesday Blitz May 9 Early 2023"]
[White "Salinas Herrera, Pablo"]
[Black "Domingo Nunez, Ruben"]
[WhiteFideId "3407128"]
[BlackFideId "22245570"]
[WhiteElo "2546"]
[BlackElo "2404"]
[Result "0-1"]
[Round "08"]
[TimeControl "180+2"]
[Date "2023.05.09"]
[WhiteClock "0:00:00"]
[BlackClock "0:00:07"]

1. e4 {[%clk 0:03:00]}  Nc6 {[%clk 0:02:55]} 2. Nf3 {[%clk 0:03:00]}  d5 {[%clk 0:02:55]} 3. exd5 {[%clk 0:03:01]}  Qxd5 {[%clk 0:02:56]} 4. Nc3 {[%clk 0:02:53]}  Qa5 {[%clk 0:02:56]} 5. Bc4 {[%clk 0:02:44]}  Nf6 {[%clk 0:02:56]} 6. d3 {[%clk 0:02:39]}  Bg4 {[%clk 0:02:56]} 7. h3 {[%clk 0:02:38]}  Qh5 {[%clk 0:02:55]} 8. Bb5 {[%clk 0:02:11]}  e6 {[%clk 0:02:43]} 9. Bf4 {[%clk 0:02:03]}  Bb4 {[%clk 0:02:01]} 10. Bxc6+ {[%clk 0:02:01]}  bxc6 {[%clk 0:02:01]} 11. Qe2 {[%clk 0:01:56]}  Nd5 {[%clk 0:01:58]} 12. Bd2 {[%clk 0:01:56]}  Bxf3 {[%clk 0:01:53]} 13. Qxf3 {[%clk 0:01:54]}  Qxf3 {[%clk 0:01:53]} 14. gxf3 {[%clk 0:01:55]}  Kd7 {[%clk 0:01:49]} 15. Na4 {[%clk 0:01:53]}  Bd6 {[%clk 0:01:47]} 16. c4 {[%clk 0:01:50]}  Nf4 {[%clk 0:01:48]} 17. Bxf4 {[%clk 0:01:42]}  Bxf4 {[%clk 0:01:48]} 18. d4 {[%clk 0:01:39]}  Rab8 {[%clk 0:01:44]} 19. b3 {[%clk 0:01:35]}  Ke7 {[%clk 0:01:39]} 20. Rd1 {[%clk 0:01:32]}  Rhd8 {[%clk 0:01:39]} 21. Ke2 {[%clk 0:01:32]}  g6 {[%clk 0:01:35]} 22. Rd3 {[%clk 0:01:31]}  Bd6 {[%clk 0:01:31]} 23. Rhd1 {[%clk 0:01:28]}  Bb4 {[%clk 0:01:30]} 24. Re3 {[%clk 0:01:28]}  Rd7 {[%clk 0:01:29]} 25. f4 {[%clk 0:00:51]}  Rbd8 {[%clk 0:01:19]} 26. Red3 {[%clk 0:00:51]}  Kf6 {[%clk 0:01:16]} 27. Kf3 {[%clk 0:00:49]}  Kf5 {[%clk 0:01:16]} 28. Ke3 {[%clk 0:00:47]}  Bd6 {[%clk 0:01:08]} 29. Nc3 {[%clk 0:00:44]}  Bxf4+ {[%clk 0:01:06]} 30. Ke2 {[%clk 0:00:45]}  e5 {[%clk 0:00:46]} 31. d5 {[%clk 0:00:40]}  e4 {[%clk 0:00:44]} 32. Rd4 {[%clk 0:00:10]}  Be5 {[%clk 0:00:44]} 33. Nxe4 {[%clk 0:00:11]}  Bxd4 {[%clk 0:00:42]} 34. Rxd4 {[%clk 0:00:12]}  cxd5 {[%clk 0:00:36]} 35. Nc5 {[%clk 0:00:12]}  Re7+ {[%clk 0:00:21]} 36. Kf3 {[%clk 0:00:12]}  c6 {[%clk 0:00:20]} 37. Rf4+ {[%clk 0:00:09]}  Ke5 {[%clk 0:00:17]} 38. Nd3+ {[%clk 0:00:10]}  Kd6 {[%clk 0:00:18]} 39. c5+ {[%clk 0:00:11]}  Kd7 {[%clk 0:00:18]} 40. Rf6 {[%clk 0:00:09]}  Kc7 {[%clk 0:00:17]} 41. Kf4 {[%clk 0:00:07]}  d4 {[%clk 0:00:15]} 42. Kf3 {[%clk 0:00:05]}  Rd5 {[%clk 0:00:16]} 43. Kg3 {[%clk 0:00:04]}  Rf5 {[%clk 0:00:15]} 44. Rd6 {[%clk 0:00:04]}  Rd5 {[%clk 0:00:13]} 45. Rf6 {[%clk 0:00:04]}  a5 {[%clk 0:00:13]} 46. Rf4 {[%clk 0:00:04]}  f5 {[%clk 0:00:13]} 47. Kg2 {[%clk 0:00:04]}  Re4 {[%clk 0:00:13]} 48. Rf3 {[%clk 0:00:05]}  g5 {[%clk 0:00:10]} 49. Kf1 {[%clk 0:00:05]}  f4 {[%clk 0:00:10]} 50. h4 {[%clk 0:00:05]}  h6 {[%clk 0:00:10]} 51. hxg5 {[%clk 0:00:05]}  hxg5 {[%clk 0:00:11]} 52. Rh3 {[%clk 0:00:06]}  Re7 {[%clk 0:00:10]} 53. Rh6 {[%clk 0:00:05]}  g4 {[%clk 0:00:08]} 54. Nxf4 {[%clk 0:00:05]}  Rde5 {[%clk 0:00:08]} 55. Nd3 {[%clk 0:00:05]}  Rf5 {[%clk 0:00:08]} 56. Rg6 {[%clk 0:00:04]}  Re3 {[%clk 0:00:08]} 57. Nb2 {[%clk 0:00:03]}  g3 {[%clk 0:00:08]} 58. Rg7+ {[%clk 0:00:02]}  Kd8 {[%clk 0:00:08]} 59. Nc4 {[%clk 0:00:00]}  Rxf2+ {[%clk 0:00:07]} 0-1


[Site "https://www.chess.com"]

[Event "Titled Tuesday Blitz May 9 Early 2023"]
[White "Gharibyan, Mamikon"]
[Black "MKlose11"]
[WhiteFideId "13308300"]
[WhiteElo "2445"]
[BlackElo "2595"]
[Result "0-1"]
[Round "08"]
[TimeControl "180+2"]
[Date "2023.05.09"]
[WhiteClock "0:00:00"]
[BlackClock "0:00:04"]

1. d4 {[%clk 0:03:00]}  Nf6 {[%clk 0:02:59]} 2. c4 {[%clk 0:03:00]}  c5 {[%clk 0:03:00]} 3. d5 {[%clk 0:03:01]}  b5 {[%clk 0:03:00]} 4. cxb5 {[%clk 0:03:02]}  a6 {[%clk 0:03:00]} 5. e3 {[%clk 0:03:02]}  g6 {[%clk 0:03:00]} 6. Nc3 {[%clk 0:03:02]}  Bg7 {[%clk 0:03:00]} 7. a4 {[%clk 0:03:02]}  O-O {[%clk 0:02:59]} 8. Nf3 {[%clk 0:03:02]}  d6 {[%clk 0:02:59]} 9. Ra3 {[%clk 0:03:01]}  Ne8 {[%clk 0:02:57]} 10. h3 {[%clk 0:02:57]}  Nd7 {[%clk 0:02:51]} 11. Be2 {[%clk 0:02:55]}  axb5 {[%clk 0:02:51]} 12. Bxb5 {[%clk 0:02:54]}  Nc7 {[%clk 0:02:46]} 13. Bc6 {[%clk 0:02:53]}  Rb8 {[%clk 0:02:31]} 14. O-O {[%clk 0:02:51]}  Bb7 {[%clk 0:02:31]} 15. Bxb7 {[%clk 0:02:25]}  Rxb7 {[%clk 0:02:30]} 16. e4 {[%clk 0:02:22]}  Qa8 {[%clk 0:02:27]} 17. Re1 {[%clk 0:02:21]}  Rfb8 {[%clk 0:02:26]} 18. Qc2 {[%clk 0:02:16]}  Qa6 {[%clk 0:02:19]} 19. g3 {[%clk 0:02:02]}  Ne5 {[%clk 0:02:15]} 20. Nxe5 {[%clk 0:01:57]}  Bxe5 {[%clk 0:02:16]} 21. Kg2 {[%clk 0:01:57]}  Qc4 {[%clk 0:02:13]} 22. h4 {[%clk 0:01:56]}  Rb3 {[%clk 0:02:07]} 23. Rxb3 {[%clk 0:01:43]}  Qxb3 {[%clk 0:02:06]} 24. Qd3 {[%clk 0:01:37]}  Rb4 {[%clk 0:01:48]} 25. h5 {[%clk 0:01:32]}  Rxa4 {[%clk 0:01:41]} 26. Bg5 {[%clk 0:01:25]}  f6 {[%clk 0:01:08]} 27. Bh6 {[%clk 0:01:17]}  Ra8 {[%clk 0:00:47]} 28. hxg6 {[%clk 0:01:16]}  hxg6 {[%clk 0:00:47]} 29. Qf3 {[%clk 0:01:14]}  Kf7 {[%clk 0:00:42]} 30. Be3 {[%clk 0:00:52]}  Rh8 {[%clk 0:00:36]} 31. Bc1 {[%clk 0:00:39]}  Qc2 {[%clk 0:00:28]} 32. Ne2 {[%clk 0:00:29]}  Bxb2 {[%clk 0:00:20]} 33. Bxb2 {[%clk 0:00:25]}  Qxb2 {[%clk 0:00:21]} 34. Nf4 {[%clk 0:00:19]}  Qe5 {[%clk 0:00:21]} 35. Rb1 {[%clk 0:00:14]}  Qg5 {[%clk 0:00:18]} 36. Rb7 {[%clk 0:00:10]}  Qh6 {[%clk 0:00:16]} 37. Kf1 {[%clk 0:00:05]}  Na6 {[%clk 0:00:14]} 38. Ra7 {[%clk 0:00:04]}  Nb4 {[%clk 0:00:14]} 39. Ne6 {[%clk 0:00:02]}  Qc1+ {[%clk 0:00:10]} 40. Ke2 {[%clk 0:00:02]}  Qc2+ {[%clk 0:00:09]} 41. Kf1 {[%clk 0:00:02]}  Qc1+ {[%clk 0:00:08]} 42. Ke2 {[%clk 0:00:02]}  Rh1 {[%clk 0:00:04]} 43. Ng5+ {[%clk 0:00:01]}  Kf8 {[%clk 0:00:04]} 44. Ne6+ {[%clk 0:00:01]}  Kf7 {[%clk 0:00:04]} 45. Ng5+ {[%clk 0:00:01]}  Kf8 {[%clk 0:00:04]} 46. Ne6+ {[%clk 0:00:00]}  Kg8 {[%clk 0:00:04]} 0-1


[Site "https://www.chess.com"]

[Event "Titled Tuesday Blitz May 9 Early 2023"]
[White "Horak, Martin"]
[Black "Ohanyan, Emin"]
[WhiteFideId "367095"]
[BlackFideId "13312022"]
[WhiteElo "2091"]
[BlackElo "2411"]
[Result "0-1"]
[Round "08"]
[TimeControl "180+2"]
[Date "2023.05.09"]
[WhiteClock "0:00:15"]
[BlackClock "0:00:20"]

1. e4 {[%clk 0:03:00]}  e5 {[%clk 0:02:55]} 2. f4 {[%clk 0:02:53]}  d5 {[%clk 0:02:52]} 3. exd5 {[%clk 0:02:53]}  exf4 {[%clk 0:02:51]} 4. Nf3 {[%clk 0:02:54]}  Nf6 {[%clk 0:02:51]} 5. Bb5+ {[%clk 0:02:54]}  Nbd7 {[%clk 0:02:46]} 6. O-O {[%clk 0:02:41]}  Be7 {[%clk 0:02:37]} 7. d4 {[%clk 0:02:37]}  Nxd5 {[%clk 0:02:36]} 8. c4 {[%clk 0:02:16]}  Ne3 {[%clk 0:02:35]} 9. Bxe3 {[%clk 0:02:16]}  fxe3 {[%clk 0:02:36]} 10. Qd3 {[%clk 0:02:14]}  c6 {[%clk 0:02:21]} 11. Ba4 {[%clk 0:02:13]}  Nc5 {[%clk 0:02:18]} 12. Qc2 {[%clk 0:01:57]}  Nxa4 {[%clk 0:02:10]} 13. Qxa4 {[%clk 0:01:58]}  O-O {[%clk 0:02:07]} 14. Qb3 {[%clk 0:01:49]}  Bg4 {[%clk 0:01:36]} 15. Qxe3 {[%clk 0:01:13]}  Bxf3 {[%clk 0:01:35]} 16. gxf3 {[%clk 0:01:12]}  Bf6 {[%clk 0:01:30]} 17. Kh1 {[%clk 0:00:54]}  Bxd4 {[%clk 0:01:25]} 18. Qd2 {[%clk 0:00:52]}  Qf6 {[%clk 0:00:58]} 19. Nc3 {[%clk 0:00:45]}  Bxc3 {[%clk 0:00:40]} 20. Qxc3 {[%clk 0:00:46]}  Qxc3 {[%clk 0:00:41]} 21. bxc3 {[%clk 0:00:47]}  Rfd8 {[%clk 0:00:41]} 22. Rab1 {[%clk 0:00:46]}  Rd7 {[%clk 0:00:41]} 23. Rfd1 {[%clk 0:00:45]}  Rad8 {[%clk 0:00:41]} 24. Re1 {[%clk 0:00:44]}  c5 {[%clk 0:00:36]} 25. Re5 {[%clk 0:00:41]}  b6 {[%clk 0:00:35]} 26. a4 {[%clk 0:00:42]}  f6 {[%clk 0:00:31]} 27. Re2 {[%clk 0:00:41]}  Kf7 {[%clk 0:00:26]} 28. a5 {[%clk 0:00:41]}  Rd1+ {[%clk 0:00:26]} 29. Rxd1 {[%clk 0:00:40]}  Rxd1+ {[%clk 0:00:27]} 30. Kg2 {[%clk 0:00:40]}  Rc1 {[%clk 0:00:17]} 31. axb6 {[%clk 0:00:29]}  axb6 {[%clk 0:00:18]} 32. Rb2 {[%clk 0:00:29]}  Rxc3 {[%clk 0:00:18]} 33. Rxb6 {[%clk 0:00:27]}  Rxc4 {[%clk 0:00:19]} 34. Rc6 {[%clk 0:00:27]}  g5 {[%clk 0:00:18]} 35. h4 {[%clk 0:00:27]}  Rxh4 {[%clk 0:00:16]} 36. Rxc5 {[%clk 0:00:27]}  Kg6 {[%clk 0:00:17]} 37. Rc8 {[%clk 0:00:26]}  h5 {[%clk 0:00:17]} 38. Rg8+ {[%clk 0:00:25]}  Kf5 {[%clk 0:00:17]} 39. Rc8 {[%clk 0:00:25]}  Ra4 {[%clk 0:00:17]} 40. Rc5+ {[%clk 0:00:26]}  Kg6 {[%clk 0:00:18]} 41. Rc8 {[%clk 0:00:26]}  h4 {[%clk 0:00:18]} 42. Rg8+ {[%clk 0:00:26]}  Kf5 {[%clk 0:00:19]} 43. Kh3 {[%clk 0:00:25]}  Ra3 {[%clk 0:00:19]} 44. Kg2 {[%clk 0:00:24]}  Ra2+ {[%clk 0:00:20]} 45. Kh3 {[%clk 0:00:20]}  Rf2 {[%clk 0:00:19]} 46. f4 {[%clk 0:00:16]}  Rxf4 {[%clk 0:00:20]} 47. Rb8 {[%clk 0:00:15]}  Rf3+ {[%clk 0:00:20]} 48. Kg2 {[%clk 0:00:15]}  Ra3 {[%clk 0:00:21]} 49. Kh2 {[%clk 0:00:15]}  Kg4 {[%clk 0:00:20]} 50. Kg2 {[%clk 0:00:15]}  f5 {[%clk 0:00:20]} 0-1


[Site "https://www.chess.com"]

[Event "Titled Tuesday Blitz May 9 Early 2023"]
[White "Peng, Li Min"]
[Black "Ljukin, Sergei"]
[WhiteFideId "14112620"]
[BlackFideId "14102200"]
[WhiteElo "2436"]
[BlackElo "2312"]
[Result "1-0"]
[Round "08"]
[TimeControl "180+2"]
[Date "2023.05.09"]
[WhiteClock "0:00:54"]
[BlackClock "0:00:00"]

1. d4 {[%clk 0:02:58]}  d5 {[%clk 0:02:53]} 2. c4 {[%clk 0:02:58]}  c6 {[%clk 0:02:53]} 3. Nf3 {[%clk 0:02:59]}  Nf6 {[%clk 0:02:54]} 4. e3 {[%clk 0:03:00]}  e6 {[%clk 0:02:54]} 5. Nbd2 {[%clk 0:03:00]}  c5 {[%clk 0:02:54]} 6. cxd5 {[%clk 0:02:58]}  exd5 {[%clk 0:02:54]} 7. Bb5+ {[%clk 0:02:55]}  Nc6 {[%clk 0:02:53]} 8. O-O {[%clk 0:02:55]}  Be7 {[%clk 0:02:53]} 9. dxc5 {[%clk 0:02:54]}  Bxc5 {[%clk 0:02:53]} 10. Nb3 {[%clk 0:02:51]}  Bb6 {[%clk 0:02:51]} 11. Nbd4 {[%clk 0:02:50]}  Bd7 {[%clk 0:02:50]} 12. Be2 {[%clk 0:02:51]}  O-O {[%clk 0:02:50]} 13. b3 {[%clk 0:02:51]}  Nxd4 {[%clk 0:02:05]} 14. Nxd4 {[%clk 0:02:52]}  Ne4 {[%clk 0:02:05]} 15. Bb2 {[%clk 0:02:42]}  Rc8 {[%clk 0:02:05]} 16. Nf3 {[%clk 0:02:06]}  Be6 {[%clk 0:01:38]} 17. Rc1 {[%clk 0:02:06]}  Ba5 {[%clk 0:01:27]} 18. Rxc8 {[%clk 0:01:55]}  Qxc8 {[%clk 0:01:26]} 19. Qa1 {[%clk 0:01:56]}  Bc3 {[%clk 0:01:19]} 20. Rc1 {[%clk 0:01:56]}  Bxb2 {[%clk 0:01:19]} 21. Qxb2 {[%clk 0:01:57]}  Qd7 {[%clk 0:01:09]} 22. Nd4 {[%clk 0:01:57]}  Rc8 {[%clk 0:01:04]} 23. f3 {[%clk 0:01:52]}  Rxc1+ {[%clk 0:00:45]} 24. Qxc1 {[%clk 0:01:53]}  Nf6 {[%clk 0:00:44]} 25. a4 {[%clk 0:01:45]}  Ne8 {[%clk 0:00:23]} 26. Bb5 {[%clk 0:01:43]}  Qc7 {[%clk 0:00:19]} 27. Qd2 {[%clk 0:01:38]}  Nd6 {[%clk 0:00:19]} 28. Bd3 {[%clk 0:01:35]}  g6 {[%clk 0:00:16]} 29. g4 {[%clk 0:01:35]}  Qc5 {[%clk 0:00:16]} 30. h4 {[%clk 0:01:29]}  a5 {[%clk 0:00:15]} 31. h5 {[%clk 0:01:26]}  Kg7 {[%clk 0:00:14]} 32. Qh2 {[%clk 0:01:14]}  Qc1+ {[%clk 0:00:12]} 33. Kf2 {[%clk 0:01:13]}  Qd2+ {[%clk 0:00:12]} 34. Be2 {[%clk 0:01:11]}  Qb4 {[%clk 0:00:08]} 35. h6+ {[%clk 0:01:07]}  Kf8 {[%clk 0:00:08]} 36. Qe5 {[%clk 0:01:05]}  Ne8 {[%clk 0:00:04]} 37. Nxe6+ {[%clk 0:00:53]}  fxe6 {[%clk 0:00:00]} 38. Qh8+ {[%clk 0:00:54]} 1-0


[Site "https://www.chess.com"]